[Event "98th Caplin Hastings Masters 2024-25"]
[Site "Hastings"]
[Date "2024.12.29"]
[Round "3.5"]
[White "Golding, James"]
[Black "Struck, Lasse"]
[Result "1-0"]
[ECO "E11"]
[WhiteElo "2203"]
[BlackElo "1983"]
[Annotator "RC"]
[PlyCount "127"]
[EventDate "2024.12.23"]
[EventType "swiss"]
[EventCountry "ENG"]
[SourceTitle "playchess.com"]
[Source "ChessBase"]
[SourceQuality "1"]
[TimeControl "5400+30"]

1. d4 {[%emt 1:31:00]} Nf6 {[%emt 1:31:00]} 2. c4 {[%emt 0:00:00]} e6 {[%emt 0:00:00]} 3. Nf3 {[%emt 0:01:00]} Bb4+ {[%emt 0:01:00]} 4. Bd2 {[%emt 0:00:30]} a5 {[%emt 0:00:00]} 5. g3 {[%emt 0:00:30]} d6 {[%emt 0:00:00]} 6. Bg2 {[%emt 0:00:00]} Nbd7 {[%emt 0:00:00]} 7. O-O {[%emt 0:01:00]} e5 {[%emt 0:02:00]} 8. e3 {[%emt 0:00:30]} Bxd2 {[%emt 0:00:30]} 9. Nfxd2 {[%emt 0:00:30]} O-O {[%emt 0:00:30]} 10. Nc3 {[%emt 0:00:30]} c6 {[%emt 0:00:30]} 11. Qc2 {[%emt 0:00:30]} Re8 {[%emt 0:00:30]} 12. Rac1 {[%emt 0:00:30]} exd4 {[%emt 0:00:00]} 13. exd4 {[%emt 0:00:00]} Qb6 {[%emt 0:01:00]} 14. c5 {[%emt 0:01:00]} Qb4 {[%emt 0:00:00]} 15. Nde4 {[%emt 0:00:00]} dxc5 {[%emt 0:01:00]} 16. dxc5 {[%emt 0:01:00]} Nxc5 {[%emt 0:00:30]} 17. Nxf6+ {[%emt 0:00:00]} gxf6 {[%emt 0:00:30]} 18. a3 {[%emt 0:01:00]} Qb6 {[%emt 0:00:30]} 19. Nd5 {[%emt 0:00:30]} cxd5 {[%emt 0:00:30]} 20. Qxc5 {[%emt 0:00:00]} Qxc5 {[%emt 0:00:00]} 21. Rxc5 {[%emt 0:01:00]} b6 {[%emt 0:01:00]} 22. Rxd5 {[%emt 0:00:30]} Bb7 {[%emt 0:00:00]} 23. Rd6 {[%emt 0:00:00]} Bxg2 {[%emt 0:01:00]} 24. Kxg2 {[%emt 0:00:00]} Rab8 {[%emt 0:00:00]} 25. Rxf6 {[%emt 0:01:30]} Re2 {[%emt 0:01:00]} 26. b4 {[%emt 0:00:30]} axb4 {[%emt 0:00:00]} 27. axb4 {[%emt 0:00:00]} Re4 {[%emt 0:01:00]} 28. Rb1 {[%emt 0:01:00]} b5 {[%emt 0:00:30]} 29. Rf5 {[%emt 0:00:30]} Kg7 {[%emt 0:00:30]} 30. Kf3 {[%emt 0:00:30]} Rc4 {[%emt 0:00:30]} 31. Rc5 {[%emt 0:00:30]} Rd4 {[%emt 0:00:00]} 32. Ke3 {[%emt 0:00:00]} Rd6 {[%emt 0:01:00]} 33. Rf5 {[%emt 0:00:00]} Re8+ {[%emt 0:00:00]} 34. Kf3 {[%emt 0:00:00]} Rd3+ {[%emt 0:01:00]} 35. Kg2 {[%emt 0:00:00]} Rb8 {[%emt 0:00:00]} 36. Rc1 {[%emt 0:02:30]} Rb7 {[%emt 0:00:00]} 37. Rcc5 {[%emt 0:00:00]} Rd4 {[%emt 0:01:30]} 38. Rf4 {[%emt 0:00:00]} Rxf4 {[%emt 0:00:00]} 39. gxf4 {[%emt 0:00:00]} Kf6 {[%emt 0:00:00]} 40. Kf3 {[%emt 0:00:00]} Ke6 {[%emt 0:01:30]} 41. Kg4 {[%emt 0:02:30]} Kf6 {[%emt 0:00:30]} 42. h3 {[%emt 0:00:00]} Rb8 {[%emt 0:00:30]} 43. Kf3 {[%emt 0:01:00]} Rb7 {[%emt 0:00:00]} 44. Ke4 {[%emt 0:00:00]} Ke6 {[%emt 0:00:00]} 45. Rc6+ {[%emt 0:00:00]} Ke7 {[%emt 0:01:30]} 46. Kd5 {[%emt 0:01:30]} Rd7+ {[%emt 0:00:00]} 47. Kc5 {[%emt 0:00:30]} Rd3 {[%emt 0:01:00]} 48. Rh6 {[%emt 0:00:00]} Rf3 {[%emt 0:00:30]} 49. Rh4 {[%emt 0:01:00]} Rxf2 {[%emt 0:00:00]} 50. Kxb5 {[%emt 0:00:00]} Kd6 {[%emt 0:00:00]} 51. Kb6 {[%emt 0:00:00]} Kd5 {[%emt 0:00:24]} 52. b5 {[%emt 0:00:00]} f5 {[%emt 0:01:36]} 53. Kc7 {[%emt 0:02:00]} Rc2+ {[%emt 0:00:00]} 54. Kb7 {[%emt 0:00:00]} Rb2 {[%emt 0:00:00]} 55. b6 {[%emt 0:00:00]} Ke4 {[%emt 0:00:45]} 56. Kc7 {[%emt 0:01:30]} Rc2+ {[%emt 0:00:11]} 57. Kb8 {[%emt 0:00:30]} h5 {[%emt 0:00:30]} 58. b7 {[%emt 0:00:00]} Rc3 {[%emt 0:00:25]} 59. Rxh5 {[%emt 0:00:00]} Kxf4 {[%emt 0:00:01]} 60. Rh8 {[%emt 0:00:00]} Kg3 {[%emt 0:01:35]} 61. Ka7 {[%emt 0:00:00]} Ra3+ {[%emt 0:00:31]} 62. Kb6 {[%emt 0:00:00]} Rb3+ {[%emt 0:00:02]} 63. Kc6 {[%emt 0:00:00]} f4 {[%emt 0:00:15]} 64. Rb8 {[%emt 0:00:00]} 1-0

[Event "98th Caplin Hastings Masters 2024-25"]
[Site "Hastings"]
[Date "2024.12.29"]
[Round "3.6"]
[White "Wall, Tim P"]
[Black "Samarasinghe Jude, Ranga"]
[Result "1-0"]
[ECO "C02"]
[WhiteElo "2173"]
[BlackElo "1944"]
[Annotator "RC"]
[PlyCount "91"]
[EventDate "2024.12.23"]
[EventType "swiss"]
[EventCountry "ENG"]
[SourceTitle "playchess.com"]
[Source "ChessBase"]
[SourceQuality "1"]
[TimeControl "5400+30"]

1. e4 {[%emt 0:00:36]} e6 {[%emt 0:06:56]} 2. d4 {[%emt 0:04:12]} d5 {[%emt 0:00:11]} 3. e5 {[%emt 0:01:44]} c5 {[%emt 0:00:06]} 4. c3 {[%emt 0:00:08]} Qb6 {[%emt 0:00:05]} 5. Nf3 {[%emt 0:01:05]} Nc6 {[%emt 0:00:08]} 6. Bd3 {[%emt 0:00:22]} Bd7 {[%emt 0:00:05]} 7. dxc5 {[%emt 0:02:17]} Bxc5 {[%emt 0:00:48]} 8. O-O {[%emt 0:00:10]} a5 {[%emt 0:01:05]} 9. Qe2 {[%emt 0:05:49]} Nge7 {[%emt 0:01:40]} 10. a4 {[%emt 0:04:41]} h6 {[%emt 0:08:13]} 11. Na3 {[%emt 0:04:38]} g5 {[%emt 0:09:07]} 12. Nb5 {[%emt 0:04:15]} Ng6 {[%emt 0:05:50]} 13. h3 {[%emt 0:18:35]} Ke7 {[%emt 0:01:17]} 14. Bxg6 {[%emt 0:16:39]} fxg6 {[%emt 0:00:05]} 15. Be3 {[%emt 0:00:42]} Rhg8 {[%emt 0:05:39]} 16. Bxc5+ {[%emt 0:02:04]} Qxc5 {[%emt 0:00:05]} 17. Nfd4 {[%emt 0:00:47]} Raf8 {[%emt 0:02:17]} 18. Qe3 {[%emt 0:01:52]} Nxd4 {[%emt 0:04:27]} 19. Nxd4 {[%emt 0:01:32]} b6 {[%emt 0:00:44]} 20. f4 {[%emt 0:10:10]} gxf4 {[%emt 0:00:07]} 21. Rxf4 {[%emt 0:00:16]} g5 {[%emt 0:03:43]} 22. Rxf8 {[%emt 0:02:02]} Rxf8 {[%emt 0:00:07]} 23. Qd3 {[%emt 0:00:22]} Rf4 {[%emt 0:07:17]} 24. Qh7+ {[%emt 0:02:06]} Ke8 {[%emt 0:00:04]} 25. Qxh6 {[%emt 0:03:10]} Rxd4 {[%emt 0:01:29]} 26. Qh8+ {[%emt 0:00:48]} Ke7 {[%emt 0:01:03]} 27. Qg7+ {[%emt 0:01:30]} Kd8 {[%emt 0:01:03]} 28. Qxg5+ {[%emt 0:00:09]} Kc7 {[%emt 0:00:04]} 29. cxd4 {[%emt 0:00:06]} Qxd4+ {[%emt 0:00:04]} 30. Kh1 {[%emt 0:00:10]} Qxb2 {[%emt 0:02:46]} 31. Rc1+ {[%emt 0:06:44]} Kb7 {[%emt 0:00:30]} 32. Qf4 {[%emt 0:00:13]} Bxa4 {[%emt 0:00:32]} 33. Qf7+ {[%emt 0:01:33]} Ka6 {[%emt 0:00:09]} 34. Qc7 {[%emt 0:00:17]} Bb3 {[%emt 0:04:38]} 35. Rc6 {[%emt 0:02:23]} Qf2 {[%emt 0:02:09]} 36. Rc1 {[%emt 0:01:17]} Bc4 {[%emt 0:03:37]} 37. Qc8+ {[%emt 0:00:44]} Kb5 {[%emt 0:07:21]} 38. Qxe6 {[%emt 0:00:06]} a4 {[%emt 0:01:07]} 39. Rb1+ {[%emt 0:00:59]} Ka5 {[%emt 0:00:10]} 40. Qd6 {[%emt 0:01:18]} b5 {[%emt 0:06:36]} 41. e6 {[%emt 0:00:32]} Bf1 {[%emt 0:06:08]} 42. Qxd5 {[%emt 0:00:22]} Qf8 {[%emt 0:05:00]} 43. Qb7 {[%emt 0:00:58]} Bxg2+ {[%emt 0:03:41]} 44. Kxg2 {[%emt 0:00:26]} Qg8+ {[%emt 0:00:09]} 45. Kh1 {[%emt 0:00:10]} Qxe6 {[%emt 0:00:07]} 46. Qxb5# {[%emt 0:02:31]} 1-0

[Event "98th Caplin Hastings Masters 2024-25"]
[Site "Hastings"]
[Date "2024.12.29"]
[Round "3.7"]
[White "Kolka, David"]
[Black "Bazakutsa, Svyatoslav"]
[Result "1-0"]
[ECO "B22"]
[WhiteElo "2020"]
[BlackElo "2484"]
[Annotator "RC"]
[PlyCount "91"]
[EventDate "2024.12.23"]
[EventType "swiss"]
[EventCountry "ENG"]
[SourceTitle "playchess.com"]
[Source "ChessBase"]
[SourceQuality "1"]
[TimeControl "5400+30"]

1. e4 {[%emt 0:00:35]} c5 {[%emt 0:00:12]} 2. c3 {[%emt 0:00:11]} Nf6 {[%emt 0:00:15]} 3. e5 {[%emt 0:00:04]} Nd5 {[%emt 0:00:05]} 4. Nf3 {[%emt 0:00:04]} e6 {[%emt 0:00:16]} 5. d4 {[%emt 0:00:47]} cxd4 {[%emt 0:00:08]} 6. cxd4 {[%emt 0:00:04]} d6 {[%emt 0:00:10]} 7. Bc4 {[%emt 0:00:44]} Be7 {[%emt 0:00:25]} 8. O-O {[%emt 0:00:59]} O-O {[%emt 0:00:10]} 9. Qe2 {[%emt 0:01:05]} Bd7 {[%emt 0:01:09]} 10. Nc3 {[%emt 0:03:14]} Nxc3 {[%emt 0:03:56]} 11. bxc3 {[%emt 0:00:02]} Bc6 {[%emt 0:00:12]} 12. Bf4 {[%emt 0:05:07]} Qc7 {[%emt 0:14:12]} 13. Bd3 {[%emt 0:06:40]} Nd7 {[%emt 0:05:00]} 14. Rfe1 {[%emt 0:08:19]} g6 {[%emt 0:08:48]} 15. Ng5 {[%emt 0:14:47]} dxe5 {[%emt 0:23:10]} 16. dxe5 {[%emt 0:01:03]} Bf6 {[%emt 0:01:02]} 17. Qg4 {[%emt 0:16:50]} Bxg5 {[%emt 0:30:15]} 18. Qxg5 {[%emt 0:04:58]} Rfc8 {[%emt 0:00:34]} 19. Re3 {[%emt 0:02:14]} Qd8 {[%emt 0:01:13]} 20. Qh6 {[%emt 0:01:16]} Qf8 {[%emt 0:00:37]} 21. Qh4 {[%emt 0:00:21]} Bd5 {[%emt 0:01:45]} 22. Bh6 {[%emt 0:00:52]} Qd8 {[%emt 0:04:34]} 23. Bg5 {[%emt 0:00:36]} Qf8 {[%emt 0:01:03]} 24. Rh3 {[%emt 0:04:26]} h5 {[%emt 0:00:52]} 25. c4 {[%emt 0:02:38]} Bc6 {[%emt 0:00:39]} 26. Qf4 {[%emt 0:00:41]} b5 {[%emt 0:01:51]} 27. cxb5 {[%emt 0:03:49]} Bb7 {[%emt 0:00:02]} 28. Rxh5 {[%emt 0:01:17]} Rc5 {[%emt 0:01:03]} 29. Be7 {[%emt 0:11:18]} Qg7 {[%emt 0:00:46]} 30. Bf6 {[%emt 0:00:11]} Nxf6 {[%emt 0:00:30]} 31. exf6 {[%emt 0:00:07]} Qf8 {[%emt 0:00:19]} 32. Bxg6 {[%emt 0:00:36]} fxg6 {[%emt 0:00:45]} 33. f7+ {[%emt 0:00:06]} Kg7 {[%emt 0:00:10]} 34. Qh6+ {[%emt 0:00:17]} Kf6 {[%emt 0:00:11]} 35. Qxf8 {[%emt 0:00:09]} Rxf8 {[%emt 0:00:05]} 36. Rxc5 {[%emt 0:00:03]} Rxf7 {[%emt 0:00:05]} 37. Rac1 {[%emt 0:00:15]} Rf8 {[%emt 0:00:06]} 38. Rc7 {[%emt 0:00:46]} Rb8 {[%emt 0:00:09]} 39. a4 {[%emt 0:00:36]} a6 {[%emt 0:00:09]} 40. R1c5 {[%emt 0:00:20]} Bd5 {[%emt 0:00:11]} 41. f3 {[%emt 0:00:28]} axb5 {[%emt 0:00:06]} 42. Rxb5 {[%emt 0:00:18]} Rh8 {[%emt 0:00:06]} 43. a5 {[%emt 0:00:26]} Rh4 {[%emt 0:00:05]} 44. Rcc5 {[%emt 0:03:07]} Ra4 {[%emt 0:00:25]} 45. Rxd5 {[%emt 0:00:30]} exd5 {[%emt 0:00:18]} 46. Rxd5 {[%emt 0:00:01]} 1-0

[Event "98th Caplin Hastings Masters 2024-25"]
[Site "Hastings"]
[Date "2024.12.29"]
[Round "3.8"]
[White "Grutter, Tim"]
[Black "Stefansson, Vignir Vatnar"]
[Result "1/2-1/2"]
[ECO "B11"]
[WhiteElo "2379"]
[BlackElo "2537"]
[Annotator "TA"]
[PlyCount "62"]
[EventDate "2024.12.23"]
[EventType "swiss"]
[EventCountry "ENG"]
[SourceTitle "playchess.com"]
[Source "ChessBase"]
[SourceQuality "1"]
[TimeControl "5400+30"]

{[%evp 10,62,25,25,37,31,31,30,31,22,29,23,12,13,26,6,4,-12,-8,-12,0,-14,0,0,0,0,0,-4,0,-10,-16,-25,-21,-24,-10,-8,-7,-1,-12,-7,0,-1,-9,-8,0,0,0,0,0,0,0,0,41,45,62]} 1. e4 {[%emt 0:00:29]} c6 {[%emt 0:01:30]} 2. Nf3 {[%emt 0:00:32]} d5 {[%emt 0:00:07]} 3. Nc3 {[%emt 0:00:06]} dxe4 {[%emt 0:00:31]} 4. Nxe4 {[%emt 0:00:07]} Nf6 {[%emt 0:00:04]} 5. Qe2 {[%emt 0:00:25]} Nxe4 {[%emt 0:00:06]} 6. Qxe4 {[%emt 0:00:05]} Be6 {[%emt 0:00:03]} 7. b3 {[%emt 0:03:54]} Nd7 {[%emt 0:00:16]} 8. Bb2 {[%emt 0:02:04]} Nf6 {[%emt 0:00:07]} 9. Qe2 {[%emt 0:03:21]} Bg4 {[%emt 0:00:51]} 10. h3 {[%emt 0:02:22]} Bxf3 {[%emt 0:00:05]} 11. Qxf3 {[%emt 0:00:04]} g6 {[%emt 0:00:07]} 12. Bd3 {[%emt 0:07:08]} Bg7 {[%emt 0:00:41]} 13. O-O {[%emt 0:00:50]} O-O {[%emt 0:00:42]} 14. Rfe1 {[%emt 0:00:35]} a5 {[%emt 0:04:53]} 15. a3 {[%emt 0:09:15]} Nd7 {[%emt 0:13:56]} 16. Bxg7 {[%emt 0:01:12]} Kxg7 {[%emt 0:00:05]} 17. Bc4 {[%emt 0:02:48]} e6 {[%emt 0:02:37]} 18. Bf1 {[%emt 0:06:35]} Qf6 {[%emt 0:02:22]} 19. Qe3 {[%emt 0:00:40]} Rfd8 {[%emt 0:00:40]} 20. Red1 {[%emt 0:03:08]} Qb2 {[%emt 0:04:17]} 21. c4 {[%emt 0:07:32]} c5 {[%emt 0:06:03]} 22. d4 {[%emt 0:09:01]} cxd4 {[%emt 0:00:15]} 23. Qxd4+ {[%emt 0:00:05]} Qxd4 {[%emt 0:00:04]} 24. Rxd4 {[%emt 0:00:03] Threatens to win with Rad1.} Nc5 {[%emt 0:00:10]} 25. Rxd8 {[%emt 0:00:25]} Rxd8 $11 {[%emt 0:00:06][%mdl 4096] Endgame KRB-KRN} 26. b4 {[%emt 0:04:04]} Nb3 {[%emt 0:00:50]} 27. Rb1 {[%emt 0:02:42]} a4 {[%emt 0:01:34]} 28. c5 {[%emt 0:03:57]} Kf6 {[%emt 0:08:22]} 29. Be2 {[%emt 0:05:10]} e5 {[%emt 0:16:12]} 30. Rb2 {[%emt 0:02:34]} Rd4 {[%emt 0:15:24]} 31. Bb5 {[%emt 0:02:22][%cal Oc5c6]} Ke7 {[%emt 0:05:27]} 1/2-1/2

[Event "98th Caplin Hastings Masters 2024-25"]
[Site "Hastings"]
[Date "2024.12.29"]
[Round "3.9"]
[White "Waldhausen Gordon, Frederick"]
[Black "Xue, Haowen"]
[Result "0-1"]
[ECO "E17"]
[WhiteElo "2355"]
[BlackElo "2502"]
[Annotator "TA"]
[PlyCount "88"]
[EventDate "2024.12.23"]
[EventType "swiss"]
[EventCountry "ENG"]
[SourceTitle "playchess.com"]
[Source "ChessBase"]
[SourceQuality "1"]
[TimeControl "5400+30"]

{[%evp 13,88,16,18,17,2,4,0,-22,0,3,20,14,26,26,23,16,22,0,0,0,0,0,0,0,0,0,-6,-16,-21,-42,-54,-40,-45,-43,-37,-49,-12,-42,-25,-41,-36,-36,-45,-133,-132,-123,-126,-166,-160,-170,-154,-242,-245,-250,-253,-258,-251,-247,-245,-245,-222,-289,-281,-291,-287,-294,-276,-356,-383,-377,-382,-432,-486,-492,-487,-572,-560]} 1. d4 {[%emt 0:00:06]} Nf6 {[%emt 0:00:21]} 2. Nf3 {[%emt 0:00:04]} b6 {[%emt 0:00:51]} 3. g3 {[%emt 0:00:20]} Bb7 {[%emt 0:00:06]} 4. Bg2 {[%emt 0:00:04]} e6 {[%emt 0:00:31]} 5. c4 {[%emt 0:00:07]} Be7 {[%emt 0:00:15]} 6. O-O {[%emt 0:00:05]} O-O {[%emt 0:00:05]} 7. Re1 {[%emt 0:00:42]} Na6 {[%emt 0:01:36]} 8. b3 {[%emt 0:03:17]} c5 {[%emt 0:06:01]} 9. Bb2 {[%emt 0:02:35]} cxd4 {[%emt 0:00:38]} 10. Bxd4 {[%emt 0:01:09]} Nc5 {[%emt 0:01:25]} 11. Nc3 {[%emt 0:01:30]} Rc8 {[%emt 0:02:23]} 12. Rc1 {[%emt 0:03:21]} h6 {[%emt 0:05:02]} 13. Qc2 {[%emt 0:04:23]} d6 {[%emt 0:12:10]} 14. Red1 {[%emt 0:03:23]} a6 {[%emt 0:03:47]} 15. Qb2 {[%emt 0:07:50]} Qc7 {[%emt 0:00:55]} 16. Ne1 {[%emt 0:01:48][%cal Oe2e4]} Bxg2 {[%emt 0:03:12]} 17. Nxg2 {[%emt 0:00:18]} Qb7 {[%emt 0:01:23]} 18. a4 {[%emt 0:03:01]} Rfd8 {[%emt 0:03:40]} 19. Nf4 {[%emt 0:02:14]} Ncd7 {[%emt 0:00:52]} 20. Ng2 {[%emt 0:10:31]} Ne5 {[%emt 0:02:20]} 21. Bxe5 {[%emt 0:07:11]} dxe5 {[%emt 0:00:26]} 22. Qc2 {[%emt 0:02:00]} g6 {[%emt 0:06:04]} 23. Rxd8+ {[%emt 0:01:40]} Rxd8 {[%emt 0:00:54]} 24. Rd1 {[%emt 0:00:16]} Rc8 {[%emt 0:00:32]} 25. Ne3 {[%emt 0:02:42]} Bc5 {[%emt 0:06:51]} 26. Qd2 {[%emt 0:02:08]} Kg7 {[%emt 0:01:31]} 27. h3 {[%emt 0:01:09]} h5 {[%emt 0:01:59] Prevents Ng4} 28. Ng2 {[%emt 0:03:02] [#]} (28. Qc1 $15) 28... b5 $1 $17 {[%emt 0:03:19][%mdl 512] Black is more active.} 29. axb5 {[%emt 0:04:25]} axb5 {[%emt 0:00:17]} 30. e3 {[%emt 0:04:20]} bxc4 {[%emt 0:08:02]} 31. bxc4 {[%emt 0:00:09]} Qb3 {[%emt 0:00:31][%cal Oc5b4]} 32. Nb5 {[%emt 0:03:47]} (32. Qd3 $17) 32... Bb4 {[%emt 0:03:13]} 33. Qd3 {[%emt 0:01:23]} Qxd3 {[%emt 0:00:16]} 34. Rxd3 {[%emt 0:00:04]} Rxc4 {[%emt 0:00:05]} 35. Rd1 {[%emt 0:02:35] Prevents Rc1.} Ne4 {[%emt 0:02:47]} 36. Ne1 {[%emt 0:02:46]} Rc5 {[%emt 0:07:17]} 37. Nd3 {[%emt 0:01:23]} Rd5 {[%emt 0:02:37] And now ...Bd2 would win.} ({Much less strong is} 37... Rxb5 38. Rb1 $19) 38. Nc7 {[%emt 0:05:53]} Rd7 {[%emt 0:00:21]} 39. Nb5 {[%emt 0:00:07]} Be7 {[%emt 0:09:11]} 40. f3 {[%emt 0:06:06]} Nxg3 {[%emt 0:00:16]} 41. Nc3 {[%emt 0:00:56]} Rc7 {[%emt 0:00:41]} 42. Ne4 {[%emt 0:00:18]} Nxe4 {[%emt 0:00:16]} 43. fxe4 {[%emt 0:00:05]} Rc4 {[%emt 0:00:08]} 44. Nf2 {[%emt 0:00:08]} Bh4 {[%emt 0:00:12]} 0-1

[Event "98th Caplin Hastings Masters 2024-25"]
[Site "Hastings"]
[Date "2024.12.29"]
[Round "3.10"]
[White "Siva Mahadevan"]
[Black "Gasanov, Eldar"]
[Result "1-0"]
[ECO "B61"]
[WhiteElo "2349"]
[BlackElo "2476"]
[Annotator "TA"]
[PlyCount "79"]
[EventDate "2024.12.23"]
[EventType "swiss"]
[EventCountry "ENG"]
[SourceTitle "playchess.com"]
[Source "ChessBase"]
[SourceQuality "1"]
[TimeControl "5400+30"]

{[%evp 20,79,56,19,69,18,45,37,35,0,16,0,0,5,3,17,39,45,85,85,110,62,116,70,125,132,202,201,181,191,189,166,169,174,166,187,171,178,265,260,738,727,719,675,29983,29984,29984,29985,29985,29986,29986,29981,29980,29981,29991,29963,2233,1662,1492,1454,1050,915]} 1. e4 {[%emt 0:00:04]} c5 {[%emt 0:02:00]} 2. Nf3 {[%emt 0:00:10]} Nc6 {[%emt 0:00:22]} 3. d4 {[%emt 0:00:11]} cxd4 {[%emt 0:00:06]} 4. Nxd4 {[%emt 0:00:07]} Nf6 {[%emt 0:01:18]} 5. Nc3 {[%emt 0:00:07]} d6 {[%emt 0:00:42]} 6. Bg5 {[%emt 0:00:25]} Bd7 {[%emt 0:00:42]} 7. Qd2 {[%emt 0:00:41]} Rc8 {[%emt 0:00:23]} 8. O-O-O {[%emt 0:00:43]} Nxd4 {[%emt 0:00:37]} 9. Qxd4 {[%emt 0:00:03]} Qa5 {[%emt 0:00:19]} 10. Bd2 {[%emt 0:00:24]} a6 {[%emt 0:01:21]} 11. f3 {[%emt 0:00:16]} Qc5 {[%emt 0:06:07]} (11... g6 $11) 12. Qd3 {[%emt 0:00:46]} (12. Qxc5 $14 Rxc5 13. g4) 12... b5 {[%emt 0:03:30]} 13. Be3 {[%emt 0:01:53]} Qc7 {[%emt 0:00:51] White is slightly better.} 14. g4 {[%emt 0:05:32]} b4 {[%emt 0:13:52]} 15. Nd5 {[%emt 0:12:04]} (15. Ne2 $5) 15... Nxd5 {[%emt 0:00:47]} 16. exd5 {[%emt 0:00:03][%cal Od3e4]} h5 {[%emt 0:02:57]} 17. Rd2 {[%emt 0:05:12]} (17. Qxa6 $2 Qxc2#) 17... a5 {[%emt 0:05:17]} 18. Qe4 {[%emt 0:05:25]} hxg4 {[%emt 0:17:18]} 19. fxg4 {[%emt 0:00:59] White now steadily converts the win.} g6 {[%emt 0:00:07]} 20. Bg5 {[%emt 0:04:55]} (20. Ba6 b3 21. a3 (21. axb3 Ra8 $11) 21... Rb8 $14) ({White should play} 20. Rf2 $1 $16) 20... a4 {[%emt 0:07:27]} (20... Qb7 $14) 21. Bd3 {[%emt 0:36:31] White is more active.} (21. Qxb4 Bg7 22. c3 Rb8 $15) ({White should try} 21. Ba6 $16 {[%cal Oh1e1] And now Re1! would win.} Ra8 22. Re1) 21... b3 {[%emt 0:09:48]} (21... Qc5 $14) 22. a3 $1 $16 {[%emt 0:01:41]} Rh3 {[%emt 0:07:51]} (22... f5 $16 23. Qe2 Rh3) 23. c3 $18 {[%emt 0:06:48] aiming for Re1.} Kd8 {[%emt 0:05:41] [#]} 24. Rf1 {[%emt 0:02:33]} Be8 {[%emt 0:00:52]} 25. Re2 {[%emt 0:01:31]} Qb7 {[%emt 0:03:56] [#]} 26. Ba6 $1 {[%emt 0:06:56][%mdl 512]} Qxa6 {[%emt 0:06:09]} 27. Bxe7+ {[%emt 0:00:05][%cal Bg5e7,Be7f8,Bf8d6][%mdl 32]} Kc7 {[%emt 0:00:08]} 28. Bxf8 {[%emt 0:00:04] Rf6 would now be deadly.} Kb7 {[%emt 0:02:08] Black is weak on the dark squares} (28... f5 $142 29. gxf5 Bb5 30. fxg6 (30. Qe7+ $2 Kb8 $19) 30... Bxe2) 29. Rf6 {[%emt 0:04:38]} Qa5 $2 {[%emt 0:01:45] [#]} (29... Bb5 30. Rxf7+ (30. Bxd6 Bxe2 31. Qe7+ Ka8 $11) 30... Ka8) 30. Qd4 $1 {[%emt 0:00:52]} (30. Rxd6 $2 {is the wrong capture.} Rhxc3+ 31. Kd2 R3c4+ 32. Kd3 Rxe4 $19) 30... Ka8 {[%emt 0:00:34]} 31. Bxd6 {[%emt 0:00:41]} Qb5 {[%emt 0:00:25]} 32. Re7 {[%emt 0:00:44][%csl Gd4][%cal Re7a7]} Bd7 {[%emt 0:00:18]} 33. Rfxf7 {[%emt 0:00:42]} Rd3 {[%emt 0:00:48] [#]} 34. Rxd7 $1 {[%emt 0:00:46]} Qxd7 {[%emt 0:00:29]} 35. Qxd3 {[%emt 0:00:05]} (35. Rxd7 Rxd4 36. Bg3 Rd3 $19) 35... Qxd6 {[%emt 0:00:06] KQR-KQR} 36. Qb5 {[%emt 0:02:26][%csl Gf7][%cal Rb5b7]} Rxc3+ {[%emt 0:00:28]} 37. Kb1 {[%emt 0:00:59][%csl Gf7][%cal Rb5b7]} Rc7 {[%emt 0:00:55]} 38. Qxa4+ {[%emt 0:00:05] White is clearly winning.} Kb8 {[%emt 0:00:18]} 39. Qxb3+ {[%emt 0:00:13]} Kc8 {[%emt 0:00:01]} 40. Rxc7+ {[%emt 0:00:08] Weighted Error Value: White=0.12 (very precise) /Black=0.44.  Mistake:       	White=3     	Black=5      Inaccurate:     	---       	Black=2      OK:         	White=5     	Black=7      Best:        	White=3     	Black=1      Strong:       	White=2     	---} 1-0